bitfinex/quotes_BTCUSD_20230118
["timestamp","ask_amount","ask_price","bid_price","bid_amount"]
[1674062730902,0.10545673,20923.0,20918.0,0.00861738]
[1674062731178,0.2997777,20923.0,20918.0,0.08875798]
[1674062731433,0.2997777,20923.0,20918.0,0.13475798]
[1674062731434,0.3037777,20923.0,20918.0,0.13475798]
[1674062731689,0.3037777,20923.0,20918.0,0.08875798]
[1674062731690,0.2997777,20923.0,20918.0,0.08875798]
[1674062731962,0.3037777,20923.0,20918.0,0.13475798]
[1674062733034,0.19432097,20922.0,20918.0,0.05461738]
[1674062733292,0.321417,20921.0,20919.0,0.0196138]
[1674062733573,0.328894,20920.0,20919.0,0.01949907]
[1674062734858,0.328894,20920.0,20919.0,0.06549907]
[1674062734861,1.30041666,20920.0,20919.0,0.06549907]
[1674062735128,0.333894,20920.0,20919.0,0.06149907]
[1674062735389,0.328894,20920.0,20919.0,0.01949907]
[1674062735647,0.333894,20920.0,20919.0,0.06149907]
[1674062735908,0.93369569,20920.0,20919.0,0.01949907]
[1674062736176,0.98269569,20920.0,20919.0,0.02349907]
[1674062736461,0.9557736,20920.0,20919.0,0.02349907]
[1674062736984,0.328894,20920.0,20919.0,0.01949907]
[1674062737239,0.377894,20920.0,20919.0,0.02349907]
[1674062737517,1.23339569,20920.0,20919.0,0.01949907]
[1674062737785,1.23339569,20920.0,20918.0,0.00861738]
[1674062737786,2.34926013,20920.0,20918.0,0.00861738]
[1674062738042,2.34926013,20920.0,20918.0,1.738e-05]
[1674062738043,1.81764635,20919.0,20918.0,1.738e-05]
[1674062738299,3.22454635,20919.0,20917.0,0.00902155]
[1674062738576,0.92104069,20918.0,20917.0,0.00902155]
[1674062738850,2.52668623,20918.0,20917.0,2.155e-05]
[1674062739113,2.85631935,20918.0,20917.0,2.155e-05]
[1674062739381,0.06530845,20917.0,20915.0,0.08913729]
[1674062739654,0.34164,20916.0,20915.0,0.08913729]
[1674062739951,0.11391712,20922.0,20915.0,0.08913729]
[1674062740397,1.214,20922.0,20916.0,0.0801406]
[1674062740398,0.048,20918.0,20917.0,0.004]
[1674062740663,0.048,20918.0,20917.0,0.01259214]
[1674062740916,0.048,20918.0,20917.0,0.00409214]
[1674062741219,0.048,20918.0,20917.0,0.004]
[1674062741440,0.47720169,20918.0,20915.0,0.00899669]
[1674062741692,0.1219,20916.0,20915.0,0.04699669]
[1674062741964,1.12468566,20916.0,20915.0,0.00399669]
[1674062742221,1.35746469,20916.0,20915.0,0.00399669]
[1674062742735,1.35346469,20916.0,20915.0,0.00399669]
[1674062742739,1.53396903,20916.0,20915.0,0.04699669]
[1674062743007,1.35346469,20916.0,20915.0,0.00399669]
[1674062743272,2.18890377,20916.0,20915.0,0.02909669]
[1674062743535,0.03299,20915.0,20914.0,0.00267931]
[1674062743804,1.27277435,20915.0,20910.0,0.00906856]
[1674062744092,0.47720169,20913.0,20910.0,0.00906856]
[1674062744355,0.1268,20911.0,20910.0,0.00906856]
[1674062744614,1.67605332,20911.0,20910.0,0.00906856]
[1674062744911,1.48173235,20911.0,20910.0,0.02700856]
[1674062745214,2.89737061,20911.0,20906.0,0.00900371]
[1674062745490,2.89737061,20911.0,20892.0,0.12343994]
[1674062745491,1.36930169,20908.0,20892.0,0.0097706]
[1674062745756,1.36930169,20908.0,20894.0,0.00019]
[1674062745757,0.47720169,20901.0,20894.0,0.00019]
[1674062746022,0.17821,20904.0,20894.0,0.00019]
[1674062746023,2.69398505,20900.0,20894.0,0.00019]
[1674062746285,0.51700897,20899.0,20894.0,0.00019]
[1674062746585,0.1271,20896.0,20892.0,0.0097706]
[1674062746838,0.304404,20895.0,20892.0,0.0097706]
[1674062747099,0.45468291,20898.0,20892.0,0.0097706]
[1674062747366,0.24176327,20907.0,20893.0,0.6801406]
[1674062747625,0.00019,20897.0,20895.0,0.1269]
[1674062748110,0.00019,20897.0,20896.0,0.1277]
[1674062748363,0.00019,20897.0,20892.0,1.8526212]
[1674062748364,0.0565,20897.0,20892.0,0.0097706]
[1674062748631,0.00019,20897.0,20892.0,0.1374706]
[1674062748888,0.19432097,20896.0,20892.0,0.1374706]
[1674062749140,0.19432097,20895.0,20892.0,0.1374706]
[1674062749916,6e-05,20898.0,20892.0,0.1374706]
[1674062750169,6e-05,20898.0,20893.0,0.0801406]
[1674062750170,0.19438097,20898.0,20893.0,0.0801406]
[1674062750505,6e-05,20898.0,20893.0,0.3801406]
[1674062750677,0.008,20897.0,20893.0,0.0801406]
[1674062750941,6e-05,20898.0,20893.0,0.3]
[1674062751198,6e-05,20898.0,20892.0,0.1374706]
[1674062751464,0.00019,20897.0,20895.0,0.1271]
[1674062751725,0.00019,20897.0,20895.0,0.6279]
[1674062751987,0.00819,20897.0,20896.0,0.4266]
[1674062752510,0.00938786,20907.0,20897.0,0.00819]
[1674062752783,0.00938786,20907.0,20904.0,0.1277]
[1674062753042,0.00938786,20907.0,20905.0,0.0751406]
[1674062753301,0.00938786,20907.0,20906.0,0.0751406]
[1674062753570,0.0751406,20905.0,20900.0,0.1277]
[1674062753837,0.74783157,20905.0,20900.0,0.0751406]
[1674062754085,0.19432097,20904.0,20896.0,0.17838]
[1674062754586,0.0751406,20905.0,20896.0,0.17838]
[1674062754587,0.26946157,20905.0,20896.0,0.17838]
[1674062754591,0.26946157,20905.0,20898.0,0.1264]
[1674062754875,0.0751406,20905.0,20904.0,0.255]
[1674062755138,0.0771406,20905.0,20904.0,0.6301406]
[1674062755402,0.0751406,20905.0,20904.0,0.555]
[1674062756390,0.0751406,20905.0,20901.0,0.4274]
[1674062756392,0.0751406,20905.0,20898.0,0.1264]
[1674062756395,0.2015406,20905.0,20895.0,0.17782]
[1674062756396,0.0751406,20905.0,20895.0,0.17782]
[1674062756649,0.96360502,20904.0,20895.0,0.2251406]
[1674062756914,0.67273097,20903.0,20896.0,0.1277]
[1674062757176,0.19432097,20902.0,20896.0,0.1277]
[1674062757561,0.19432097,20901.0,20895.0,0.064]
[1674062757564,0.19432097,20902.0,20896.0,0.0751406]
[1674062757799,0.19432097,20902.0,20897.0,0.1277]
[1674062758043,0.4784,20903.0,20896.0,0.0751406]
[1674062758044,0.958806,20903.0,20896.0,0.064]
[1674062758408,1.07395331,20903.0,20894.0,0.1277]
[1674062758637,0.82352266,20902.0,20896.0,0.064]
[1674062758859,0.98332066,20901.0,20896.0,0.064]
[1674062759092,0.99975697,20900.0,20896.0,0.064]
[1674062759312,0.99848366,20899.0,20892.0,0.0047706]
[1674062759540,0.99848366,20899.0,20892.0,0.1318706]
[1674062759541,0.478539,20897.0,20892.0,0.1318706]
[1674062759772,0.47848,20900.0,20892.0,0.1318706]
[1674062760041,0.19432097,20899.0,20894.0,0.1277]
[1674062760305,0.19432097,20899.0,20896.0,0.058]
[1674062760569,0.478498,20899.0,20892.0,0.0047706]
[1674062760890,0.478498,20899.0,20892.0,0.0627706]
[1674062760891,0.315521,20898.0,20892.0,0.0627706]
[1674062761105,0.319613,20897.0,20892.0,0.0047706]
[1674062761367,0.97556066,20896.0,20892.0,0.0047706]
[1674062761628,1.15560966,20895.0,20894.0,0.054]
[1674062761880,1.79142831,20895.0,20892.0,0.0047706]
[1674062762156,0.310561,20894.0,20892.0,0.0587706]
[1674062762413,1.73967669,20893.0,20892.0,0.0587706]
[1674062762964,1.262475,20893.0,20892.0,0.0047706]
[1674062763229,1.73967669,20893.0,20892.0,0.0047706]
[1674062763537,0.01050015,20891.0,20883.0,0.01169462]
[1674062763823,0.67152266,20890.0,20883.0,0.01169462]
[1674062764081,0.957492,20888.0,20883.0,0.01169462]
[1674062764347,0.98661366,20887.0,20883.0,0.01169462]
[1674062764597,0.331318,20886.0,20884.0,0.03434916]
[1674062764898,0.31104,20885.0,20884.0,0.03434916]
[1674062765158,0.01909028,20891.0,20884.0,0.03434916]
[1674062765412,1.15023066,20890.0,20885.0,0.17725762]
[1674062765674,1.15023066,20890.0,20886.0,0.17725762]
[1674062765675,0.324635,20889.0,20886.0,0.17725762]
[1674062765934,0.313861,20888.0,20887.0,9.227e-05]
[1674062766430,0.478697,20890.0,20887.0,0.17734989]
[1674062766431,0.01909028,20891.0,20887.0,9.227e-05]
[1674062766704,0.004,20888.0,20887.0,0.17725762]
[1674062766958,0.05631,20888.0,20885.0,0.15]
[1674062767225,0.310029,20887.0,20885.0,0.15009228]
[1674062767530,0.004,20888.0,20885.0,0.15009228]
[1674062767754,0.004,20888.0,20886.0,0.068665]
[1674062768027,0.01909028,20891.0,20887.0,0.24591762]
[1674062768285,0.01909028,20891.0,20888.0,0.24590962]
[1674062768545,0.01909028,20891.0,20889.0,0.3]
[1674062768822,0.01909028,20891.0,20890.0,0.068643]
[1674062769085,0.00943412,20903.0,20891.0,0.01909]
[1674062769380,0.00943412,20903.0,20892.0,0.17725762]
[1674062769381,0.478561,20896.0,20892.0,0.17725762]
[1674062769648,0.478561,20896.0,20885.0,0.31952]
[1674062769649,0.80608469,20895.0,20885.0,0.37202253]
[1674062769910,0.957304,20892.0,20885.0,0.32725762]
[1674062770217,0.321486,20891.0,20883.0,0.01169462]
[1674062770480,0.95746,20889.0,20887.0,0.092]
[1674062770755,0.620137,20888.0,20883.0,0.18895224]
[1674062771022,0.99963766,20887.0,20885.0,0.093]
[1674062771297,1.10006669,20886.0,20879.0,0.15]
[1674062771802,1.10006669,20886.0,20883.0,0.085]
[1674062771803,2.87817736,20885.0,20883.0,0.085]
[1674062772067,0.314104,20884.0,20879.0,0.17725762]
[1674062772334,1.107642,20885.0,20878.0,0.02]
[1674062772335,1.01509666,20883.0,20878.0,0.02]
[1674062772597,0.53062297,20882.0,20878.0,0.02]
[1674062772872,0.16653,20888.0,20878.0,0.02]
[1674062772873,0.16515,20885.0,20878.0,0.02]
[1674062773142,0.311686,20884.0,20878.0,0.02]
[1674062773399,0.15,20882.0,20879.0,0.078]
[1674062773658,0.15,20882.0,20878.0,0.02]
[1674062773659,0.80695469,20881.0,20878.0,0.02]
[1674062773936,0.80695469,20881.0,20878.0,0.098]
[1674062773937,0.322975,20880.0,20878.0,0.098]
[1674062774449,0.81304697,20879.0,20878.0,0.02]
[1674062774452,1.29024866,20879.0,20878.0,0.098]
[1674062774714,0.19186507,20877.0,20875.0,0.0120806]
[1674062774975,0.317923,20876.0,20875.0,0.0120806]
[1674062775541,0.617923,20876.0,20875.0,0.0070806]
[1674062775820,0.617923,20876.0,20873.0,0.00101]
[1674062775821,1.57544566,20876.0,20873.0,0.00101]
[1674062776083,0.07053599,20874.0,20869.0,0.019158]
[1674062776349,0.51267897,20873.0,20869.0,0.019158]
[1674062776620,0.01422599,20874.0,20869.0,0.019158]
[1674062776621,0.01422599,20874.0,20869.0,0.519958]
[1674062776909,0.19432097,20873.0,20870.0,0.068763]
[1674062777171,0.01422599,20874.0,20869.0,0.26741562]
[1674062777172,0.01622599,20874.0,20869.0,0.26741562]
[1674062777432,0.20854696,20874.0,20869.0,0.19641562]
[1674062777698,0.01622599,20874.0,20871.0,2.1008]
[1674062777953,0.01422599,20874.0,20873.0,0.6375]
[1674062778261,0.01422599,20874.0,20873.0,1.11470169]
[1674062778540,0.01422599,20874.0,20873.0,0.068745]
[1674062778808,0.07053599,20874.0,20873.0,0.068745]
[1674062779073,0.07053599,20874.0,20869.0,0.019158]
[1674062779335,0.51122697,20873.0,20869.0,0.110158]
[1674062779633,0.321766,20872.0,20869.0,0.019158]
[1674062779897,0.01422599,20874.0,20869.0,0.19641562]
[1674062780162,0.01422599,20874.0,20870.0,0.74682062]
[1674062780426,0.01422599,20874.0,20871.0,0.15]
[1674062780427,0.19432097,20874.0,20871.0,0.15]
[1674062780684,0.07410348,20877.0,20872.0,0.068753]
[1674062781197,0.07410348,20877.0,20873.0,0.17725762]
[1674062781201,0.07410348,20877.0,20870.0,0.30653]
[1674062781458,0.07410348,20877.0,20869.0,0.019158]
[1674062781721,0.314013,20876.0,20869.0,0.019158]
[1674062781973,0.317016,20875.0,20869.0,0.019158]
[1674062782261,0.324094,20874.0,20870.0,0.26825762]
[1674062782494,0.19432097,20874.0,20870.0,0.091]
[1674062782758,0.19432097,20874.0,20867.0,0.80558]
[1674062783040,0.07410348,20877.0,20869.0,0.091]
[1674062783294,0.07410348,20877.0,20873.0,0.15]
[1674062783592,3.48e-06,20877.0,20875.0,0.15]
[1674062783869,3.48e-06,20877.0,20876.0,0.06873]
[1674062784391,0.55809412,20884.0,20876.0,0.06873]
[1674062784672,0.06872999,20875.0,20872.0,0.43309064]
[1674062784950,0.19432097,20874.0,20869.0,0.78972]
[1674062785223,0.06872999,20875.0,20869.0,0.15282]
[1674062785484,0.06872999,20875.0,20870.0,0.068757]
[1674062785783,0.26305096,20875.0,20868.0,0.47720169]
[1674062786067,0.19432097,20874.0,20869.0,0.24602062]
[1674062786368,0.19432097,20874.0,20870.0,0.15]
[1674062786649,0.06872999,20875.0,20871.0,0.068758]
[1674062787186,0.06872999,20875.0,20867.0,0.807357]
[1674062787476,0.19432097,20874.0,20868.0,0.17725762]
[1674062787814,0.19432097,20873.0,20867.0,0.019157]
[1674062788100,0.52880397,20872.0,20868.0,0.084]
[1674062788367,0.314467,20871.0,20867.0,0.019157]
[1674062788658,0.303464,20870.0,20867.0,0.019157]
[1674062788946,0.19432097,20870.0,20867.0,0.019157]
[1674062789225,0.41963015,20873.0,20867.0,0.019157]
[1674062789491,0.49432097,20872.0,20867.0,0.27898634]
[1674062789749,0.316998,20871.0,20867.0,0.01772872]
[1674062790010,0.328601,20870.0,20867.0,0.10172872]
[1674062790280,0.309382,20869.0,20867.0,0.10172872]
[1674062790543,0.327261,20868.0,20867.0,0.07672872]
[1674062791086,0.327261,20868.0,20866.0,0.01254422]
[1674062791087,0.627261,20868.0,20866.0,0.01254422]
[1674062791343,0.775248,20867.0,20866.0,0.01254422]
[1674062791643,2.06339566,20867.0,20866.0,0.01254422]
[1674062791905,0.52227705,20867.0,20866.0,0.01254422]
[1674062792166,0.02088843,20865.0,20860.0,0.01237641]
[1674062792451,0.21092342,20865.0,20861.0,0.73104339]
[1674062792723,0.19432097,20864.0,20861.0,0.73104339]
[1674062793267,0.338654,20863.0,20861.0,0.73104339]
[1674062793574,0.319656,20862.0,20861.0,0.73104339]
[1674062793825,0.01660245,20865.0,20861.0,0.73104339]
[1674062793826,0.21092342,20865.0,20861.0,0.73104339]
[1674062794076,0.314648,20864.0,20861.0,0.90830101]
[1674062794590,0.01660245,20865.0,20861.0,0.73104339]
[1674062794599,0.002,20863.0,20862.0,0.17725762]
[1674062794876,0.01660245,20865.0,20862.0,0.5008]
[1674062795149,0.01660245,20865.0,20863.0,0.24606662]
[1674062795423,0.01660245,20865.0,20864.0,0.6593]
[1674062795872,0.01660245,20865.0,20864.0,0.227302]
[1674062795875,0.01660245,20865.0,20864.0,0.077302]
[1674062796337,2.45e-06,20865.0,20864.0,0.75535962]
[1674062796558,2.45e-06,20865.0,20864.0,0.6684329]
[1674062796789,2.45e-06,20865.0,20864.0,0.9684329]
[1674062797249,2.45e-06,20865.0,20864.0,0.1676329]
[1674062797507,0.06872999,20875.0,20864.0,0.9684329]
[1674062797760,0.06872999,20875.0,20865.0,0.67805762]
[1674062797761,0.1362,20873.0,20865.0,0.67805762]
[1674062798025,1.095684,20871.0,20861.0,0.73104339]
[1674062798283,1.38396933,20870.0,20864.0,0.092]
[1674062798558,1.38396933,20870.0,20861.0,0.73104339]
[1674062798559,0.1362,20868.0,20861.0,0.73104339]
[1674062798819,0.75497964,20867.0,20865.0,0.093]
[1674062799085,0.617775,20866.0,20861.0,0.73104339]
[1674062799342,0.52229897,20865.0,20861.0,0.81604339]
[1674062799621,0.19432097,20865.0,20861.0,0.81604339]
[1674062799869,0.88088064,20868.0,20861.0,0.81604339]
[1674062799870,0.327565,20864.0,20861.0,0.81604339]
[1674062800140,0.14779,20867.0,20861.0,0.73104339]
[1674062800141,0.29779,20866.0,20861.0,0.73104339]
[1674062800395,0.317598,20865.0,20861.0,0.81604339]
[1674062800646,0.324953,20864.0,20861.0,0.73104339]
[1674062801130,0.58175064,20868.0,20861.0,0.81604339]
[1674062801131,0.001,20865.0,20861.0,0.81604339]
[1674062801133,0.43309064,20867.0,20861.0,0.73104339]
[1674062801387,0.19532097,20866.0,20861.0,0.99330101]
[1674062801653,0.320987,20865.0,20861.0,0.90830101]
[1674062801911,0.56929064,20868.0,20861.0,0.99330101]
[1674062801912,0.333961,20864.0,20861.0,0.99330101]
[1674062802185,0.001,20864.0,20861.0,0.73104339]
[1674062802444,0.001,20864.0,20861.0,1.11381801]
[1674062802714,0.19532097,20864.0,20861.0,0.73104339]
[1674062802974,0.001,20864.0,20861.0,0.79986039]
[1674062803239,0.39546985,20873.0,20862.0,0.5874]
[1674062803720,0.06872999,20875.0,20863.0,2.80715895]
[1674062803722,0.06872999,20875.0,20865.0,0.1374]
[1674062803981,0.26305096,20875.0,20868.0,0.5008]
[1674062804242,0.06872999,20875.0,20869.0,0.17725762]
[1674062804503,0.06872999,20875.0,20870.0,0.17725762]
[1674062804793,0.06872999,20875.0,20871.0,0.17725762]
[1674062805135,0.06872999,20875.0,20872.0,0.068754]
[1674062805392,0.06872999,20875.0,20871.0,0.17725762]
[1674062805668,0.26305096,20875.0,20868.0,0.7227]
[1674062805936,0.19432097,20874.0,20863.0,0.9585]
[1674062806211,2.7446663,20873.0,20870.0,0.092]
[1674062806473,0.327836,20872.0,20864.0,0.17725762]
[1674062806730,0.24347358,20869.0,20868.0,0.091]
[1674062806985,0.57067358,20869.0,20862.0,0.17725762]
[1674062807244,0.50725097,20868.0,20861.0,0.73104339]
[1674062807517,0.19432097,20867.0,20861.0,0.73104339]
[1674062807772,0.67656422,20869.0,20864.0,0.092]
[1674062807773,0.19432097,20866.0,20864.0,0.092]
[1674062808045,0.24347358,20869.0,20864.0,0.092]
[1674062808046,0.43779455,20869.0,20865.0,0.068797]
[1674062808304,0.43779455,20869.0,20864.0,0.5928]
[1674062808305,0.24347358,20869.0,20864.0,0.5928]
[1674062808638,0.24347358,20869.0,20865.0,0.068791]
[1674062808873,0.24347358,20869.0,20864.0,1.057083]
[1674062809143,0.24347358,20869.0,20866.0,0.5008]
[1674062809408,0.24547358,20869.0,20868.0,0.5008]
[1674062809656,0.24547358,20869.0,20868.0,0.068779]
[1674062809915,0.24547358,20869.0,20868.0,0.518779]
[1674062810183,0.24747358,20869.0,20868.0,0.518779]
[1674062810439,0.24747358,20869.0,20868.0,1.019579]
[1674062810440,0.24347358,20869.0,20868.0,1.019579]
[1674062810697,0.06872999,20875.0,20869.0,0.6508]
[1674062810959,0.06872999,20875.0,20870.0,0.61325762]
[1674062811264,0.06872999,20875.0,20871.0,0.24601362]
[1674062811490,0.06872999,20875.0,20871.0,0.17725762]
[1674062811750,0.06872999,20875.0,20872.0,0.24600762]
[1674062812020,0.06872999,20875.0,20873.0,0.3]
[1674062812283,0.06872999,20875.0,20874.0,0.74679962]
[1674062812564,0.06872999,20875.0,20874.0,1.04679962]
[1674062812837,0.06872999,20875.0,20874.0,0.869542]
[1674062813348,0.11417485,20883.0,20875.0,0.56952]
[1674062813611,0.00814106,20884.0,20879.0,0.5008]
[1674062813922,0.00814106,20884.0,20880.0,0.24596362]
[1674062814117,0.00814106,20884.0,20881.0,0.24595262]
[1674062814404,0.00814106,20884.0,20881.0,0.17725762]
[1674062814661,0.331136,20883.0,20875.0,0.43188314]
[1674062814925,0.303234,20882.0,20873.0,0.6243]
[1674062815215,0.303234,20882.0,20870.0,1.06894614]
[1674062815216,0.474549,20881.0,20870.0,1.06894614]
[1674062815468,0.26412701,20881.0,20870.0,1.256563]
[1674062815719,0.15,20881.0,20871.0,0.078747]
[1674062815978,0.19432097,20880.0,20873.0,0.7538]
[1674062816252,0.01793,20875.0,20874.0,1.23399731]
[1674062816529,0.01793,20875.0,20874.0,0.078738]
[1674062818115,0.01793,20875.0,20874.0,0.83266477]
[1674062818373,0.00814106,20884.0,20875.0,0.01793]
[1674062818617,0.23946,20880.0,20878.0,0.5008]
[1674062818877,0.00814106,20884.0,20879.0,1.59265931]
[1674062818878,0.23945,20882.0,20879.0,1.59265931]
[1674062819209,0.23945,20882.0,20880.0,0.90676362]
[1674062819413,0.23945,20882.0,20877.0,0.635]
[1674062819662,0.23945,20882.0,20878.0,0.078709]
[1674062819663,0.19432097,20882.0,20878.0,0.078709]
[1674062819919,0.00814106,20884.0,20877.0,0.635]
[1674062819920,0.23952,20879.0,20877.0,0.635]
[1674062820175,0.23952,20879.0,20878.0,0.078712]
[1674062820712,0.23952,20879.0,20878.0,0.579512]
[1674062820713,0.23948,20879.0,20878.0,0.579512]
[1674062820950,0.23948,20879.0,20878.0,0.879512]
[1674062821204,0.23948,20879.0,20878.0,0.983512]
[1674062821480,0.00814106,20884.0,20878.0,1.67007131]
[1674062821754,0.00814106,20884.0,20883.0,0.5008]
[1674062822011,0.24756106,20884.0,20883.0,1.05674562]
[1674062822271,0.24756106,20884.0,20883.0,0.078688]
[1674062822525,0.00814106,20884.0,20883.0,0.378688]
[1674062822785,0.00814106,20884.0,20883.0,2.46068969]
[1674062823051,0.00855725,20888.0,20883.0,3.01280531]
[1674062823295,0.00855725,20888.0,20887.0,1.6369]
[1674062823553,0.00855725,20888.0,20887.0,4.10631731]
[1674062823821,0.00101668,20900.0,20889.0,0.5008]
[1674062824094,0.00101668,20900.0,20890.0,0.60937556]
[1674062824417,0.00101668,20900.0,20891.0,0.73308131]
[1674062824692,0.00101668,20900.0,20893.0,0.1361]
[1674062824947,0.23926,20898.0,20895.0,0.1374]
[1674062825208,0.23926,20898.0,20896.0,0.078596]
[1674062825467,0.00101668,20900.0,20897.0,1.78330207]
[1674062825741,0.00101668,20900.0,20899.0,0.6382]
[1674062826013,0.00943412,20903.0,20901.0,0.5008]
[1674062826284,0.00938786,20907.0,20904.0,0.5008]
[1674062826544,0.00934193,20912.0,20906.0,2.45130169]
[1674062826807,0.00934193,20912.0,20910.0,0.1374]
[1674062827269,0.00934193,20912.0,20911.0,1.20363138]
[1674062827271,0.00934193,20912.0,20911.0,0.078497]
[1674062827534,0.21859716,20923.0,20911.0,2.98083307]
[1674062827812,0.10545673,20923.0,20913.0,0.61390169]
[1674062828075,0.10545673,20923.0,20921.0,0.1374]
[1674062828353,0.23899,20922.0,20917.0,0.24386125]
[1674062828637,0.4122,20920.0,20918.0,0.078442]
[1674062828899,0.4122,20920.0,20914.0,0.778141]
[1674062829164,0.4122,20920.0,20914.0,0.15]
[1674062829440,0.23906,20915.0,20914.0,0.15]
[1674062829728,0.19432097,20915.0,20914.0,0.15]
[1674062829997,0.19432097,20915.0,20912.0,0.15]
[1674062829998,0.43340097,20915.0,20912.0,0.15]
[1674062830257,0.50785397,20914.0,20905.0,0.34788287]
[1674062830516,0.23913,20910.0,20903.0,1.09229869]
[1674062830782,0.23913,20910.0,20907.0,1.0]
[1674062830783,0.19432097,20910.0,20907.0,1.0]
[1674062831096,0.58435575,20918.0,20908.0,0.215914]
[1674062831407,0.23906,20915.0,20909.0,0.4288014]
[1674062831671,1.49781,20919.0,20909.0,0.4288014]
[1674062831672,0.15,20919.0,20913.0,0.97800169]
[1674062831936,0.4122,20920.0,20915.0,1.1367]
[1674062832200,0.4122,20920.0,20917.0,0.1374]
[1674062832459,0.4122,20920.0,20918.0,2.68059263]
[1674062832724,0.4122,20920.0,20919.0,0.94590207]
[1674062832986,0.4122,20920.0,20919.0,0.078445]
[1674062833246,0.39415845,20920.0,20919.0,0.078445]
[1674062834003,0.39382002,20920.0,20918.0,0.3]
[1674062834019,0.39382002,20920.0,20915.0,0.15]
[1674062834264,0.19432097,20919.0,20912.0,0.478193]
[1674062834517,0.23907,20914.0,20910.0,0.478236]
[1674062834779,0.19432097,20913.0,20911.0,0.00229121]
[1674062835102,0.15055,20916.0,20905.0,0.478341]
[1674062835103,0.23912,20911.0,20905.0,0.478341]
[1674062835333,0.19432097,20910.0,20908.0,0.478274]
[1674062835608,0.19432097,20909.0,20903.0,0.00019]
[1674062835878,2.15764577,20915.0,20903.0,0.00019]
[1674062835879,0.19432097,20910.0,20903.0,0.00019]
[1674062836143,0.19331597,20910.0,20903.0,0.00019]
[1674062836412,0.19432097,20909.0,20903.0,0.16970538]
[1674062836677,0.19432097,20908.0,20902.0,0.47842]
[1674062836941,0.19432097,20907.0,20903.0,0.078543]
[1674062837213,0.19432097,20911.0,20904.0,1.5008]
[1674062837488,0.14812,20914.0,20906.0,0.979129]
[1674062837774,1.2057,20915.0,20907.0,2.72650847]
[1674062838062,1.2026,20918.0,20911.0,0.5008]
[1674062838322,0.1374,20922.0,20912.0,1.14868538]
[1674062838586,0.625404,20934.0,20913.0,0.97698778]
[1674062838587,1.2026,20921.0,20913.0,0.97698778]
[1674062838854,0.14706,20924.0,20914.0,0.16970538]
[1674062838855,0.34138097,20924.0,20914.0,0.16970538]
[1674062839121,1.63532097,20923.0,20915.0,0.16970538]
[1674062839426,0.7374,20920.0,20916.0,0.16970538]
[1674062839672,0.15,20918.0,20911.0,0.16970538]
[1674062839934,0.15,20916.0,20909.0,0.3]
[1674062840198,0.52052997,20917.0,20910.0,0.16970538]
[1674062840199,0.19432097,20915.0,20910.0,0.16970538]
[1674062840724,0.19432097,20916.0,20911.0,0.556704]
[1674062840726,0.14706,20924.0,20911.0,0.72640938]
[1674062840995,0.19432097,20923.0,20914.0,1.0]
[1674062841255,1.3036,20925.0,20915.0,0.24817038]
[1674062841514,1.3036,20925.0,20915.0,0.16970538]
[1674062841795,0.82152266,20924.0,20916.0,0.16970538]
[1674062842070,0.49669497,20923.0,20917.0,0.16970538]
[1674062842323,0.49669497,20923.0,20918.0,0.16970538]
[1674062842324,0.307303,20922.0,20918.0,0.16970538]
[1674062842580,0.320314,20921.0,20914.0,0.16970538]
[1674062842847,0.15,20924.0,20911.0,0.4271615]
[1674062842848,0.19432097,20920.0,20911.0,0.4271615]
[1674062843118,0.324756,20919.0,20909.0,1.3836615]
[1674062843387,1.40252097,20918.0,20909.0,1.4573]
[1674062843643,0.1374,20913.0,20905.0,0.00019]
[1674062843899,0.1374,20910.0,20905.0,0.00019]
[1674062844155,0.1374,20908.0,20896.0,0.478538]
[1674062844419,0.62148247,20907.0,20897.0,0.5008]
[1674062844703,0.19432097,20906.0,20897.0,0.15]
[1674062844943,0.19432097,20905.0,20897.0,0.31970538]
[1674062845203,0.19432097,20904.0,20897.0,0.79823738]
[1674062845459,0.19432097,20903.0,20898.0,0.579374]
[1674062845756,0.19432097,20902.0,20897.0,0.478532]
[1674062846042,0.23925,20900.0,20898.0,0.078578]
[1674062846295,0.23925,20900.0,20893.0,0.9057715]
[1674062846547,0.23924,20900.0,20895.0,0.14167]
[1674062846807,1.319,20905.0,20896.0,0.478549]
[1674062847120,0.2392,20904.0,20897.0,0.078589]
[1674062847390,0.19432097,20904.0,20898.0,0.16980588]
[1674062847665,0.23925,20899.0,20894.0,0.15]
[1674062847937,0.23931,20895.0,20890.0,0.957366]
[1674062848200,0.19432097,20894.0,20890.0,0.957366]
[1674062848513,0.19432097,20893.0,20891.0,0.57965205]
[1674062848797,0.14178,20901.0,20892.0,1.60665369]
[1674062848798,0.23923,20901.0,20892.0,1.60665369]
[1674062849063,0.1374,20906.0,20893.0,0.078461]
[1674062849064,0.23927,20897.0,20893.0,0.078461]
[1674062849326,0.23926,20899.0,20892.0,1.43665788]
[1674062849582,0.23928,20896.0,20893.0,0.24826288]
[1674062849857,0.19432097,20896.0,20893.0,0.0085]
[1674062850127,0.19432097,20896.0,20894.0,0.078454]
[1674062850378,0.14083,20899.0,20890.0,0.478691]
[1674062850644,0.23933,20895.0,20891.0,0.16980588]
[1674062850899,0.23933,20895.0,20892.0,0.00023504]
[1674062851202,0.23928,20896.0,20893.0,0.078457]
[1674062851478,0.23932,20894.0,20893.0,0.078457]
[1674062851742,0.23932,20894.0,20888.0,0.15855]
[1674062852017,0.23941,20889.0,20886.0,0.00997828]
[1674062852285,0.52673397,20888.0,20886.0,0.00997828]
[1674062852569,0.0099,20885.0,20879.0,1.0]
[1674062852873,0.19432097,20884.0,20883.0,0.00908524]
[1674062853133,0.43375097,20884.0,20883.0,0.08761624]
[1674062853426,0.43375097,20884.0,20883.0,0.00908524]
[1674062853690,0.83438297,20884.0,20883.0,0.00908524]
[1674062854000,1.31158466,20884.0,20883.0,8.524e-05]
[1674062854279,0.02725571,20882.0,20870.0,0.47914]
[1674062854541,0.48438406,20881.0,20876.0,0.15]
[1674062854795,0.23954,20877.0,20876.0,0.15]
[1674062855833,0.40837606,20877.0,20871.0,0.19432097]
[1674062855840,0.23954,20877.0,20872.0,0.15]
[1674062856088,0.49282806,20876.0,20872.0,0.15]
[1674062856360,0.13692,20879.0,20869.0,0.00944603]
[1674062856361,0.47745606,20875.0,20869.0,0.00944603]
[1674062856649,0.16883606,20875.0,20869.0,0.203767]